fUST/lending_fUST_20241229
["ID","MTS","AMOUNT","RATE_DAILY","PERIOD"]
[347002051,1735462161288,-500.0,9.554e-05,2]
[347002052,1735462161309,-500.0,9.554e-05,2]
[347002053,1735462161330,-500.0,9.554e-05,2]
[347002054,1735462161351,-500.0,9.554e-05,2]
[347002055,1735462161449,-500.0,9.554e-05,2]
[347002056,1735462161473,-500.0,9.554e-05,2]
[347002057,1735462161497,-500.0,9.554e-05,2]
[347002058,1735462161518,-491.16288801,9.554e-05,2]
[347002059,1735462161539,-500.0,9.554e-05,2]
[347002060,1735462161561,-500.0,9.554e-05,2]
[347002061,1735462161582,-500.0,9.554e-05,2]
[347002062,1735462161604,-1106.37,9.554e-05,2]
[347002063,1735462161625,-510.75747027,9.554e-05,2]
[347002064,1735462161646,-500.0,9.554e-05,2]
[347002065,1735462161667,-500.0,9.554e-05,2]
[347002066,1735462161688,-500.0,9.554e-05,2]
[347002067,1735462161710,-725.86,9.554e-05,2]
[347002068,1735462161733,-500.0,9.554e-05,2]
[347002069,1735462161756,-500.0,9.554e-05,2]
[347002070,1735462161778,-500.0,9.554e-05,2]
[347002071,1735462161800,-500.0,9.554e-05,2]
[347002072,1735462161821,-500.0,9.554e-05,2]
[347002073,1735462161843,-500.0,9.554e-05,2]
[347002074,1735462161866,-500.0,9.554e-05,2]
[347002075,1735462161887,-536.55183484,9.554e-05,2]
[347002076,1735462161910,-500.0,9.554e-05,2]
[347002077,1735462161933,-500.0,9.554e-05,2]
[347002078,1735462161957,-500.0,9.554e-05,2]
[347002079,1735462161980,-500.0,9.554e-05,2]
[347002080,1735462162004,-500.0,9.554e-05,2]
[347002081,1735462162027,-501.21,9.554e-05,2]
[347002082,1735462162051,-1828.75,9.554e-05,2]
[347002083,1735462162073,-504.89822312,9.554e-05,2]
[347002084,1735462162096,-1210.23,9.554e-05,2]
[347002085,1735462162117,-503.60880248,9.554e-05,2]
[347002086,1735462162137,-500.0,9.554e-05,2]
[347002087,1735462162159,-520.74,9.554e-05,2]
[347002088,1735462162180,-500.0,9.554e-05,2]
[347002089,1735462162201,-500.0,9.554e-05,2]
[347002090,1735462162222,-503.01522744,9.554e-05,2]
[347002091,1735462162245,-500.0,9.554e-05,2]
[347002092,1735462162266,-500.0,9.554e-05,2]
[347002093,1735462162288,-500.0,9.554e-05,2]
[347002094,1735462162309,-500.0,9.554e-05,2]
[347002095,1735462162329,-500.0,9.554e-05,2]
[347002096,1735462162351,-502.62552808,9.554e-05,2]
[347002097,1735462162372,-500.0,9.554e-05,2]
[347002098,1735462162393,-500.0,9.554e-05,2]
[347002099,1735462162415,-500.89295916,9.554e-05,2]
[347002100,1735462162438,-690.49,9.554e-05,2]
[347002101,1735462162460,-20010.53,9.554e-05,2]
[347002102,1735462162483,-500.0,9.554e-05,2]
[347002103,1735462162507,-909.54,9.554e-05,2]
[347002104,1735462162528,-500.0,9.554e-05,2]
[347002105,1735462162549,-500.0,9.554e-05,2]
[347002106,1735462162569,-500.0,9.554e-05,2]
[347002107,1735462162590,-500.0,9.554e-05,2]
[347002108,1735462162611,-500.0,9.554e-05,2]
[347002109,1735462162633,-817.3,9.554e-05,2]
[347002110,1735462162653,-505.81,9.554e-05,2]
[347002111,1735462162673,-500.0,9.554e-05,2]
[347002112,1735462162694,-550.85,9.554e-05,2]
[347002113,1735462162716,-764.72,9.554e-05,2]
[347002114,1735462162737,-500.0,9.554e-05,2]
[347002115,1735462162762,-507.59452086,9.554e-05,2]
[347002116,1735462162782,-500.0,9.554e-05,2]
[347002117,1735462162803,-571.86378003,9.554e-05,2]
[347002118,1735462162824,-500.0,9.554e-05,2]
[347002119,1735462162846,-164.09686466,9.554e-05,2]
[347002120,1735462162867,-500.0,9.554e-05,2]
[347002121,1735462162888,-500.0,9.554e-05,2]
[347002122,1735462162977,-2396.2,9.554e-05,2]
[347002123,1735462163002,-500.0,9.554e-05,2]
[347002124,1735462163025,-662.28,9.554e-05,2]
[347002125,1735462163049,-500.0,9.554e-05,2]
[347002126,1735462163070,-500.0,9.554e-05,2]
[347002127,1735462163092,-500.0,9.554e-05,2]
[347002128,1735462163115,-500.0,9.554e-05,2]
[347002129,1735462163138,-865.52,9.554e-05,2]
[347002130,1735462163160,-500.0,9.554e-05,2]
[347002131,1735462163183,-500.0,9.554e-05,2]
[347002132,1735462163206,-500.0,9.554e-05,2]
[347002133,1735462163228,-500.0,9.554e-05,2]
[347002134,1735462163254,-500.0,9.554e-05,2]
[347002135,1735462163276,-500.0,9.554e-05,2]
[347002136,1735462163298,-503.45643319,9.555e-05,2]
[347002137,1735462163320,-500.0,9.555e-05,2]
[347002138,1735462163341,-264.18176743,9.555e-05,2]
[347002139,1735462163362,-464.79531377,9.555e-05,2]
[347002140,1735462163383,-500.0,9.555e-05,2]
[347002141,1735462163404,-205.88,9.555e-05,2]
[347002142,1735462163429,-611.42,9.555e-05,2]
[347002143,1735462163451,-635.465012,9.555e-05,2]
[347002144,1735462163471,-500.0,9.555e-05,2]
[347002145,1735462163493,-500.0,9.555e-05,2]
[347002146,1735462163514,-524.69774843,9.555e-05,2]
[347002147,1735462163535,-500.0,9.555e-05,2]
[347002148,1735462163555,-503.24400794,9.555e-05,2]
[347002149,1735462163576,-503.03970037,9.555e-05,2]
[347002150,1735462163597,-500.0,9.555e-05,2]
[347002151,1735462163618,-500.0,9.555e-05,2]
[347002152,1735462163639,-376.6304869,9.555e-05,2]
[347002153,1735462163660,-500.0,9.555e-05,2]
[347002154,1735462163681,-500.0,9.555e-05,2]
[347002155,1735462163703,-500.0,9.555e-05,2]
[347002156,1735462163724,-502.14130472,9.555e-05,2]
[347002157,1735462163746,-505.65961705,9.555e-05,2]
[347002158,1735462163768,-500.0,9.555e-05,2]
[347002159,1735462163790,-500.0,9.555e-05,2]
[347002160,1735462163814,-500.0,9.555e-05,2]
[347002161,1735462163836,-500.0,9.555e-05,2]
[347002162,1735462163857,-500.0,9.555e-05,2]
[347002163,1735462163878,-521.51416532,9.555e-05,2]
[347002164,1735462163899,-500.0,9.555e-05,2]
[347002165,1735462163921,-500.0,9.555e-05,2]
[347002166,1735462163943,-500.0,9.555e-05,2]
[347002167,1735462163967,-500.9927212,9.555e-05,2]
[347002168,1735462163989,-501.00418216,9.555e-05,2]
[347002169,1735462164011,-500.0,9.555e-05,2]
[347002170,1735462164035,-500.0,9.555e-05,2]
[347002171,1735462164060,-500.0,9.555e-05,2]
[347002172,1735462164084,-501.36604386,9.555e-05,2]
[347002173,1735462164106,-500.0,9.555e-05,2]
[347002174,1735462164128,-500.0,9.555e-05,2]
[347002175,1735462164153,-500.0,9.555e-05,2]
[347002176,1735462164177,-500.0,9.555e-05,2]
[347002177,1735462164197,-501.00391146,9.555e-05,2]
[347002178,1735462164221,-500.0,9.555e-05,2]
[347002179,1735462164242,-577.73711745,9.555e-05,2]
[347002180,1735462164263,-500.0,9.555e-05,2]
[347002181,1735462164288,-500.0,9.555e-05,2]
[347002182,1735462164308,-500.0,9.555e-05,2]
[347002183,1735462164330,-500.0,9.555e-05,2]
[347002184,1735462164352,-500.0,9.555e-05,2]
[347002185,1735462164374,-501.47716561,9.555e-05,2]
[347002186,1735462164395,-500.0,9.555e-05,2]
[347002187,1735462164482,-500.0,9.555e-05,2]
[347002188,1735462164505,-500.0,9.555e-05,2]
[347002189,1735462164526,-500.0,9.555e-05,2]
[347002190,1735462164547,-500.0,9.555e-05,2]
[347002191,1735462164568,-500.0,9.555e-05,2]
[347002192,1735462164589,-502.48337551,9.555e-05,2]
[347002193,1735462164611,-500.0,9.555e-05,2]
[347002194,1735462164633,-500.0,9.555e-05,2]
[347002195,1735462164654,-505.10758507,9.555e-05,2]
[347002196,1735462164675,-500.0,9.555e-05,2]
[347002197,1735462164697,-500.0,9.555e-05,2]
[347002198,1735462164719,-500.0,9.555e-05,2]
[347002199,1735462164741,-500.0,9.555e-05,2]
[347002200,1735462164761,-500.0,9.555e-05,2]
[347002201,1735462164784,-500.0,9.555e-05,2]
[347002202,1735462164808,-500.0,9.555e-05,2]
[347002203,1735462164831,-217.75365362,9.555e-05,2]
[347002204,1735462164854,-500.0,9.555e-05,2]
[347002205,1735462164877,-500.0,9.555e-05,2]
[347002206,1735462164900,-500.93744552,9.555e-05,2]
[347002207,1735462164923,-501.73257682,9.555e-05,2]
[347002208,1735462164946,-500.0,9.555e-05,2]
[347002209,1735462164968,-500.0,9.555e-05,2]
[347002210,1735462164992,-501.65321996,9.555e-05,2]
[347002211,1735462165012,-500.0,9.555e-05,2]
[347002212,1735462165036,-500.0,9.555e-05,2]
[347002213,1735462165058,-500.0,9.555e-05,2]
[347002214,1735462165079,-500.0,9.555e-05,2]
[347002215,1735462165100,-500.0,9.555e-05,2]
[347002216,1735462165121,-500.0,9.555e-05,2]
[347002217,1735462165145,-195.41353016,9.555e-05,2]
[347002218,1735462165165,-500.0,9.555e-05,2]
[347002219,1735462165186,-500.62507847,9.555e-05,2]
[347002220,1735462165207,-500.0,9.555e-05,2]
[347002221,1735462165228,-500.0,9.555e-05,2]
[347002222,1735462165250,-500.0,9.555e-05,2]
[347002223,1735462165270,-500.71400087,9.555e-05,2]
[347002224,1735462165291,-500.0,9.555e-05,2]
[347002225,1735462165312,-500.0,9.555e-05,2]
[347002226,1735462165332,-500.0,9.555e-05,2]
[347002227,1735462165352,-500.0,9.555e-05,2]
[347002228,1735462165373,-500.0,9.555e-05,2]
[347002229,1735462165394,-501.00060628,9.555e-05,2]
[347002230,1735462165416,-503.06677639,9.555e-05,2]
[347002231,1735462165437,-500.0,9.555e-05,2]
[347002232,1735462165460,-284.97569444,9.555e-05,2]
[347002233,1735462165482,-500.0,9.555e-05,2]
[347002234,1735462165504,-501.90122122,9.555e-05,2]
[347002235,1735462165525,-503.09599382,9.555e-05,2]
[347002236,1735462165546,-500.0,9.555e-05,2]
[347002237,1735462165567,-287.45394331,9.555e-05,2]
[347002238,1735462165588,-502.55660147,9.555e-05,2]
[347002239,1735462165609,-313.09523466,9.555e-05,2]
[347002240,1735462165631,-500.0,9.555e-05,2]
[347002241,1735462165651,-500.0,9.555e-05,2]
[347002242,1735462165673,-500.0,9.555e-05,2]
[347002243,1735462165694,-500.0,9.555e-05,2]
[347002244,1735462165714,-500.0,9.555e-05,2]
[347002245,1735462165735,-501.85536329,9.555e-05,2]
[347002246,1735462165759,-500.0,9.555e-05,2]
[347002247,1735462165780,-500.0,9.555e-05,2]
[347002248,1735462165802,-532.2,9.555e-05,2]
[347002249,1735462165883,-502.31581988,9.555e-05,2]
[347002250,1735462165905,-500.0,9.555e-05,2]
[347002251,1735462165926,-502.07183632,9.555e-05,2]
[347002252,1735462165949,-500.0,9.555e-05,2]
[347002253,1735462165971,-551.22,9.555e-05,2]
[347002254,1735462165994,-501.78865278,9.555e-05,2]
[347002255,1735462166016,-554.6,9.555e-05,2]
[347002256,1735462166042,-503.43070139,9.555e-05,2]
[347002257,1735462166065,-500.0,9.555e-05,2]
[347002258,1735462166088,-500.0,9.555e-05,2]
[347002259,1735462166110,-502.68230553,9.555e-05,2]
[347002260,1735462166134,-503.91833629,9.555e-05,2]
[347002261,1735462166156,-500.0,9.555e-05,2]
[347002262,1735462166177,-248.59951507,9.555e-05,2]
[347002263,1735462166198,-500.0,9.555e-05,2]
[347002264,1735462166220,-500.0,9.555e-05,2]
[347002265,1735462166243,-500.0,9.555e-05,2]
[347002266,1735462166265,-500.0,9.555e-05,2]
[347002267,1735462166286,-500.0,9.555e-05,2]
[347002268,1735462166307,-500.0,9.555e-05,2]
[347002269,1735462166327,-500.0,9.555e-05,2]
[347002270,1735462166349,-500.0,9.555e-05,2]
[347002271,1735462166369,-500.0,9.555e-05,2]
[347002272,1735462166390,-500.0,9.555e-05,2]
[347002273,1735462166412,-500.0,9.555e-05,2]
[347002274,1735462166434,-500.0,9.555e-05,2]
[347002275,1735462166455,-500.0,9.555e-05,2]
[347002276,1735462166476,-502.71200867,9.555e-05,2]
[347002277,1735462166498,-502.97086065,9.555e-05,2]
[347002278,1735462166519,-500.0,9.555e-05,2]
[347002279,1735462166540,-501.74159723,9.555e-05,2]
[347002280,1735462166561,-502.84260476,9.555e-05,2]
[347002281,1735462166581,-500.0,9.555e-05,2]
[347002282,1735462166601,-502.93390904,9.555e-05,2]
[347002283,1735462166621,-484.18230809,9.555e-05,2]
[347002284,1735462166642,-500.0,9.555e-05,2]
[347002285,1735462166662,-500.0,9.555e-05,2]
[347002286,1735462166683,-518.31767556,9.555e-05,2]
[347002287,1735462166704,-500.0,9.555e-05,2]
[347002288,1735462166725,-504.20609954,9.555e-05,2]
[347002289,1735462166747,-623.52,9.555e-05,2]
[347002290,1735462166769,-500.0,9.555e-05,2]
[347002291,1735462166790,-500.0,9.555e-05,2]
[347002292,1735462166824,-500.0,9.555e-05,2]
[347002293,1735462166848,-500.0,9.555e-05,2]
[347002294,1735462166871,-500.0,9.555e-05,2]
[347002295,1735462166894,-500.0,9.555e-05,2]
[347002296,1735462166917,-500.0,9.555e-05,2]
[347002297,1735462166939,-500.0,9.555e-05,2]
[347002298,1735462166964,-535.29112324,9.555e-05,2]
[347002299,1735462166986,-500.0,9.555e-05,2]
[347002300,1735462167010,-504.71387122,9.555e-05,2]
[347002301,1735462167032,-500.0,9.555e-05,2]
[347002302,1735462167053,-500.0,9.555e-05,2]
[347002303,1735462167075,-500.0,9.555e-05,2]
[347002304,1735462167096,-598.48867805,9.555e-05,2]
[347002305,1735462167117,-181.75132204,9.555e-05,2]
[347002306,1735462167139,-500.0,9.555e-05,2]
[347002307,1735462167162,-503.00481932,9.555e-05,2]
[347002308,1735462167278,-500.0,9.555e-05,2]
[347002309,1735462167302,-500.0,9.555e-05,2]
[347002310,1735462167324,-500.0,9.555e-05,2]
[347002311,1735462167347,-500.0,9.555e-05,2]
[347002312,1735462167369,-500.0,9.555e-05,2]
[347002313,1735462167391,-500.0,9.555e-05,2]
[347002314,1735462167413,-500.0,9.555e-05,2]
[347002315,1735462167435,-500.0,9.555e-05,2]
[347002316,1735462167458,-623.02351262,9.555e-05,2]
[347002317,1735462167480,-500.0,9.555e-05,2]
[347002318,1735462167503,-500.0,9.555e-05,2]
[347002319,1735462167524,-500.0,9.555e-05,2]
[347002320,1735462167547,-500.0,9.555e-05,2]
[347002321,1735462167568,-500.0,9.555e-05,2]
[347002322,1735462167591,-500.0,9.555e-05,2]
[347002323,1735462167613,-500.0,9.555e-05,2]
[347002324,1735462167634,-500.0,9.555e-05,2]
[347002325,1735462167656,-500.0,9.555e-05,2]
[347002326,1735462167677,-500.0,9.555e-05,2]
[347002327,1735462167698,-500.0,9.555e-05,2]
[347002328,1735462167720,-224.02691309,9.555e-05,2]
[347002329,1735462167746,-500.0,9.555e-05,2]
[347002330,1735462167768,-500.0,9.555e-05,2]
[347002331,1735462167789,-504.10523663,9.555e-05,2]
[347002332,1735462167812,-501.81324936,9.555e-05,2]
[347002333,1735462167834,-1465.75305678,9.555e-05,2]
[347002334,1735462167857,-500.0,9.555e-05,2]
[347002335,1735462167879,-504.38767277,9.555e-05,2]
[347002336,1735462167901,-500.0,9.555e-05,2]
[347002337,1735462167925,-500.0,9.555e-05,2]
[347002338,1735462167953,-1227.01,9.555e-05,2]
[347002339,1735462167974,-427.74579179,9.555e-05,2]
[347002340,1735462167996,-500.0,9.555e-05,2]
[347002341,1735462168020,-500.0,9.555e-05,2]
[347002342,1735462168043,-500.0,9.555e-05,2]
[347002343,1735462168066,-500.0,9.556e-05,2]
[347002344,1735462168089,-500.0,9.556e-05,2]
[347002345,1735462168112,-500.0,9.556e-05,2]
[347002346,1735462168134,-506.08971714,9.556e-05,2]
[347002347,1735462168156,-500.0,9.556e-05,2]
[347002348,1735462168179,-500.0,9.556e-05,2]
[347002349,1735462168201,-500.0,9.556e-05,2]
[347002350,1735462168222,-500.0,9.556e-05,2]
[347002351,1735462168243,-500.0,9.556e-05,2]
[347002352,1735462168265,-500.0,9.556e-05,2]
[347002353,1735462168286,-500.0,9.556e-05,2]
[347002354,1735462168308,-500.0,9.556e-05,2]
[347002355,1735462168330,-500.0,9.556e-05,2]
[347002356,1735462168353,-500.0,9.556e-05,2]
[347002357,1735462168375,-605.75,9.556e-05,2]
[347002358,1735462168397,-500.0,9.556e-05,2]
[347002359,1735462168420,-500.0,9.556e-05,2]
[347002360,1735462168442,-500.0,9.558e-05,2]
[347002361,1735462168465,-502.76721073,9.559e-05,2]
[347002362,1735462168487,-500.0,9.559e-05,2]
[347002363,1735462168509,-503.79362735,9.559e-05,2]
[347002364,1735462168533,-3574.54,9.559e-05,2]
[347002365,1735462168614,-500.0,9.559e-05,2]
[347002366,1735462168637,-500.0,9.559e-05,2]
[347002367,1735462168660,-500.0,9.559e-05,2]
[347002368,1735462168682,-500.21249522,9.559e-05,2]
[347002369,1735462168704,-1000.0,9.811e-05,2]
[347002370,1735462168727,-500.0,9.827e-05,2]
[347002371,1735462168750,-500.0,9.827e-05,2]
[347002372,1735462168773,-504.34988501,9.827e-05,2]
[347002373,1735462168795,-507.90531955,9.827e-05,2]
[347002374,1735462168816,-503.36207504,9.827e-05,2]
[347002375,1735462168838,-500.0,9.827e-05,2]
[347002376,1735462168860,-500.0,9.827e-05,2]
[347002377,1735462168881,-500.0,9.827e-05,2]
[347002378,1735462168902,-500.0,9.827e-05,2]
[347002379,1735462168924,-500.0,9.828e-05,2]
[347002380,1735462168950,-510.65546127,9.828e-05,2]
[347002381,1735462168972,-500.0,9.828e-05,2]
[347002382,1735462168995,-500.0,9.828e-05,2]
[347002383,1735462169018,-500.0,9.828e-05,2]
[347002384,1735462169040,-500.0,9.828e-05,2]
[347002385,1735462169062,-500.0,9.828e-05,2]
[347002386,1735462169085,-500.0,9.828e-05,2]
[347002387,1735462169110,-344.0,9.828e-05,2]
[347002388,1735462169134,-500.0,9.828e-05,2]
[347002389,1735462169158,-500.0,9.828e-05,2]
[347002390,1735462169181,-500.0,9.828e-05,2]
[347002391,1735462169203,-500.0,9.828e-05,2]
[347002392,1735462169227,-500.0,9.828e-05,2]
[347002393,1735462169251,-1106.37,9.828e-05,2]
[347002394,1735462169273,-500.0,9.828e-05,2]
[347002395,1735462169295,-725.86,9.828e-05,2]
[347002396,1735462169318,-500.0,9.828e-05,2]
[347002397,1735462169341,-500.0,9.828e-05,2]
[347002398,1735462169366,-500.0,9.828e-05,2]
[347002399,1735462169390,-500.0,9.828e-05,2]
[347002400,1735462169414,-500.0,9.828e-05,2]
[347002401,1735462169436,-500.0,9.828e-05,2]
[347002402,1735462169458,-500.0,9.828e-05,2]
[347002403,1735462169481,-500.0,9.828e-05,2]
[347002404,1735462169504,-500.0,9.828e-05,2]
[347002405,1735462169526,-500.0,9.828e-05,2]
[347002406,1735462169549,-501.21,9.828e-05,2]
[347002407,1735462169573,-1828.75,9.828e-05,2]
[347002408,1735462169595,-1210.23,9.828e-05,2]
[347002409,1735462169618,-520.74,9.828e-05,2]
[347002410,1735462169640,-500.0,9.828e-05,2]
[347002411,1735462169661,-467.19856282,9.828e-05,2]
[347002412,1735462169684,-500.0,9.828e-05,2]
[347002413,1735462169706,-500.0,9.828e-05,2]
[347002414,1735462169728,-500.0,9.828e-05,2]
[347002415,1735462169753,-500.0,9.828e-05,2]
[347002416,1735462169778,-500.0,9.828e-05,2]
[347002417,1735462169802,-500.0,9.828e-05,2]
[347002418,1735462169826,-500.0,9.828e-05,2]
[347002419,1735462169852,-690.49,9.828e-05,2]
[347002420,1735462169959,-20010.53,9.828e-05,2]
[347002421,1735462169986,-500.0,9.828e-05,2]
[347002422,1735462170011,-909.54,9.828e-05,2]
[347002423,1735462170035,-500.0,9.828e-05,2]
[347002424,1735462170059,-500.0,9.828e-05,2]
[347002425,1735462170082,-500.0,9.828e-05,2]
[347002426,1735462170119,-500.0,9.828e-05,2]
[347002427,1735462170149,-817.3,9.828e-05,2]
[347002428,1735462170175,-505.81,9.828e-05,2]
[347002429,1735462170200,-500.0,9.828e-05,2]
[347002430,1735462170224,-550.85,9.828e-05,2]
[347002431,1735462170249,-764.72,9.828e-05,2]
[347002432,1735462170272,-500.0,9.828e-05,2]
[347002433,1735462170299,-277.99055866,9.828e-05,2]
[347002434,1735462170323,-500.0,9.828e-05,2]
[347002435,1735462170349,-2396.2,9.828e-05,2]
[347002436,1735462170373,-503.58149186,9.828e-05,2]
[347002437,1735462170397,-662.28,9.828e-05,2]
[347002438,1735462170420,-500.0,9.828e-05,2]
[347002439,1735462170443,-500.0,9.828e-05,2]
[347002440,1735462170465,-500.0,9.828e-05,2]
[347002441,1735462170488,-865.52,9.828e-05,2]
[347002442,1735462170511,-507.77664109,9.828e-05,2]
[347002443,1735462170534,-500.0,9.828e-05,2]
[347002444,1735462170557,-500.0,9.828e-05,2]
[347002445,1735462170580,-500.0,9.828e-05,2]
[347002446,1735462170602,-500.0,9.829e-05,2]
[347002447,1735462170624,-185.71507622,9.829e-05,2]
[347002448,1735462170646,-500.0,9.829e-05,2]
[347002449,1735462170668,-500.0,9.829e-05,2]
[347002450,1735462170690,-504.0408749,9.829e-05,2]
[347002451,1735462170712,-500.0,9.829e-05,2]
[347002452,1735462170734,-500.0,9.829e-05,2]
[347002453,1735462170758,-500.0,9.829e-05,2]
[347002454,1735462170781,-500.0,9.829e-05,2]
[347002455,1735462170804,-500.0,9.829e-05,2]
[347002456,1735462170828,-500.0,9.829e-05,2]
[347002457,1735462170851,-500.0,9.829e-05,2]
[347002458,1735462170873,-500.0,9.829e-05,2]
[347002459,1735462170899,-500.0,9.829e-05,2]
[347002460,1735462170922,-609.03576347,9.829e-05,2]
[347002461,1735462170948,-500.0,9.829e-05,2]
[347002462,1735462170974,-187.88727987,9.829e-05,2]
[347002463,1735462170998,-500.0,9.829e-05,2]
[347002464,1735462171024,-500.0,9.829e-05,2]
[347002465,1735462171049,-500.0,9.829e-05,2]
[347002466,1735462171072,-500.0,9.829e-05,2]
[347002467,1735462171096,-500.0,9.829e-05,2]
[347002468,1735462171120,-500.0,9.829e-05,2]
[347002469,1735462171144,-500.0,9.829e-05,2]
[347002470,1735462171167,-500.0,9.829e-05,2]
[347002471,1735462171189,-500.0,9.829e-05,2]
[347002472,1735462171294,-500.0,9.829e-05,2]
[347002473,1735462171319,-500.0,9.829e-05,2]
[347002474,1735462171342,-517.34,9.829e-05,2]
[347002475,1735462171364,-503.37442402,9.829e-05,2]
[347002476,1735462171386,-500.0,9.829e-05,2]
[347002477,1735462171409,-500.0,9.829e-05,2]
[347002478,1735462171431,-500.0,9.829e-05,2]
[347002479,1735462171455,-500.0,9.829e-05,2]
[347002480,1735462171478,-500.58924651,9.829e-05,2]
[347002481,1735462171501,-500.0,9.829e-05,2]
[347002482,1735462171523,-500.0,9.829e-05,2]
[347002483,1735462171545,-500.0,9.829e-05,2]
[347002484,1735462171568,-500.0,9.829e-05,2]
[347002485,1735462171589,-500.0,9.829e-05,2]
[347002486,1735462171612,-500.0,9.829e-05,2]
[347002487,1735462171634,-500.0,9.829e-05,2]
[347002488,1735462171656,-500.0,9.829e-05,2]
[347002489,1735462171678,-531.7511274,9.829e-05,2]
[347002490,1735462171701,-500.0,9.829e-05,2]
[347002491,1735462171723,-500.0,9.829e-05,2]
[347002492,1735462171746,-500.0,9.829e-05,2]
[347002493,1735462171769,-503.376925,9.829e-05,2]
[347002494,1735462171791,-500.0,9.829e-05,2]
[347002495,1735462171813,-250.58699077,9.829e-05,2]
[347002496,1735462171836,-500.0,9.829e-05,2]
[347002497,1735462171858,-500.0,9.829e-05,2]
[347002498,1735462171880,-500.0,9.829e-05,2]
[347002499,1735462171902,-500.0,9.829e-05,2]
[347002500,1735462171924,-500.0,9.829e-05,2]
[347002501,1735462171948,-507.64432595,9.829e-05,2]
[347002502,1735462171971,-500.0,9.829e-05,2]
[347002503,1735462171993,-500.0,9.829e-05,2]
[347002504,1735462172016,-500.0,9.829e-05,2]
[347002505,1735462172041,-500.0,9.829e-05,2]
[347002506,1735462172065,-500.0,9.829e-05,2]
[347002507,1735462172089,-500.0,9.829e-05,2]
[347002508,1735462172111,-281.88658548,9.829e-05,2]
[347002509,1735462172134,-500.0,9.829e-05,2]
[347002510,1735462172157,-500.0,9.829e-05,2]
[347002511,1735462172179,-506.83527466,9.829e-05,2]
[347002512,1735462172202,-500.0,9.829e-05,2]
[347002513,1735462172226,-688.87,9.829e-05,2]
[347002514,1735462172252,-500.0,9.829e-05,2]
[347002515,1735462172275,-503.54287961,9.829e-05,2]
[347002516,1735462172297,-500.0,9.829e-05,2]
[347002517,1735462172320,-500.0,9.829e-05,2]
[347002518,1735462172343,-500.0,9.829e-05,2]
[347002519,1735462172365,-500.0,9.829e-05,2]
[347002520,1735462172388,-500.0,9.829e-05,2]
[347002521,1735462172411,-504.4650144,9.829e-05,2]
[347002522,1735462172434,-500.0,9.829e-05,2]
[347002523,1735462172516,-501.32887345,9.829e-05,2]
[347002524,1735462172539,-503.37256293,9.829e-05,2]
[347002525,1735462172562,-496.70362208,9.829e-05,2]
[347002526,1735462172585,-500.0,9.829e-05,2]
[347002527,1735462172609,-1227.01,9.829e-05,2]
[347002528,1735462172633,-3867.82,9.829e-05,2]
[347002529,1735462172655,-500.0,9.83e-05,2]
[347002530,1735462172677,-500.0,9.83e-05,2]
[347002531,1735462172698,-500.0,9.83e-05,2]
[347002532,1735462172721,-500.0,9.83e-05,2]
[347002533,1735462172743,-500.0,9.83e-05,2]
[347002534,1735462172766,-500.0,9.83e-05,2]
[347002535,1735462172788,-500.0,9.83e-05,2]
[347002536,1735462172811,-500.0,9.83e-05,2]
[347002537,1735462172833,-500.0,9.83e-05,2]
[347002538,1735462172855,-500.0,9.83e-05,2]
[347002539,1735462172878,-500.0,9.83e-05,2]
[347002540,1735462172901,-605.75,9.83e-05,2]
[347002541,1735462172926,-500.0,9.83e-05,2]
[347002542,1735462172952,-500.0,9.83e-05,2]
[347002543,1735462172975,-500.0,9.833e-05,2]
[347002544,1735462173002,-3574.54,9.833e-05,2]
[347002545,1735462173027,-500.0,9.833e-05,2]
[347002546,1735462173050,-500.0,9.833e-05,2]
[347002547,1735462173074,-500.0,9.833e-05,2]
[347002548,1735462173099,-3224.71,9.834e-05,2]
[347002549,1735462173123,-1000.0,0.00010081,2]
[347002550,1735462173147,-1000.0,0.00010081,2]